{"text_format":"3","workbook":"xlsx","n_sheets":1,"sheets":["Sheet1"],"not_rendered":{"defined_names":1},"read":"whole","date_system":"1900"}

{"sheet":"Sheet1","index":0,"n_rows":35,"n_cols":7,"rows_kept":35,"merged":[[0,3,0,4]]}
["Uniform Rentals Williamsburg County School District - Cost Sheet",null,null,"Solicitation No: WCSD202021-8"]
["The quantities on the spreadsheet are for evaluation purposes only. The quantities are only estimates and may not reflect actual usage. "]
["Sheet must not be altered in any way. While formulas have been provided, it is the responsibility of the vendor to check their calculations."]
[]
[null,"Maintenance/Custodial Services   Employees","IT Services  Employees","Administrative Supervisors"]
["Number of Employees",40,2,2]
["Garment Description in Polyester/Cotton blend (65% Polyester minimum)"]
[{"$nulls":4},"Total Estimated Amount","Cost each piece per week","Extended Yearly Cost*"]
["Light blue industrial work shirts (short sleeve)",240,null,null,{"$f":"SUM(B9:D9)","v":240},null,{"$f":"SUM(E9*F9)","v":0}]
["Light blue industrial work shirts (long sleeve)",200,null,null,200,null,{"$f":"SUM(E10*F10)","v":0}]
["Navy blue industrial work pants",418," ",null,418,null,0]
["Navy blue industrial work skirts (long)",22,null,null,22,null,0]
["Polo style black knit shirt (short sleeve)",null,12,null,12,null,0]
["Polo style black knit shirt (long sleeve)",null,10,null,10,null,0]
["Executive style navy blue shirt (short sleeve)",null,null,12,12,null,0]
["Executive style navy blue shirt (long sleeve)",null,null,10,10,null,0]
["Executive pants - pleated front - khaki",{"$nulls":3},0,null,0]
["Executive pants - pleated front - black",null,22,22]
["Uniform jacket with zip-out liner navy blue",80,4,4,{"$f":"SUM(B19:D19)","v":88},null,0]
[{"$nulls":6},0]
["Garment Description in 100% Cotton",{"$nulls":5},0]
[{"$nulls":6},0]
["Light blue industrial work shirts (short sleeve)",240,null,null,{"$f":"SUM(B23:D23)","v":240},null,0]
["Light blue industrial work shirts (long sleeve)",200,null,null,200,null,0]
["Navy blue industrial work pants",418," ",null,418,null,0]
["Navy blue industrial work skirts (long)",22,null,null,22,null,0]
["Polo style black knit shirt (short sleeve)",null,12,null,12,null,0]
["Polo style black knit shirt (long sleeve)",null,10,null,10,null,0]
["Executive style navy blue shirt (short sleeve)",null,null,12,12,null,0]
["Executive style navy blue shirt (long sleeve)",null,null,10,10,null,0]
["Executive pants - pleated front - khaki",{"$nulls":3},0,null,0]
["Executive pants - pleated front - black",null,22,22,44,null,0]
["Uniform jacket with zip-out liner navy blue",70,4,4,78,null,0]
["Fire resistant coveralls navy blue",10,null,null,10,null,0]
[{"$nulls":4},"Grand Totals:",{"$f":"SUM(F9:F34)","v":0},{"$f":"SUM(G9:G34)","v":0}]